[Event "Early-Titled-Tuesday-Blitz-February-20-2024"]
[Site "Chess.com"]
[Date "2024.02.20"]
[Round "4"]
[White "Aslanov_Umid"]
[Black "leclash"]
[Result "0-1"]
[WhiteElo "2657"]
[BlackElo "2392"]
[TimeControl "180+1"]
[EndTime "8:35:40 PST"]
[Termination "leclash won by resignation"]

1. e4 {[%clk 0:03:00.9]} 1... e5 {[%clk 0:02:59.1]} 2. Nf3 {[%clk 0:03:01.5]}
2... Nc6 {[%clk 0:02:58.6]} 3. Bc4 {[%clk 0:03:02.2]} 3... Bc5 {[%clk
0:02:58.7]} 4. O-O {[%clk 0:03:02.8]} 4... Nf6 {[%clk 0:02:59.3]} 5. d3 {[%clk
0:03:03.5]} 5... d6 {[%clk 0:02:59]} 6. c3 {[%clk 0:03:04.1]} 6... a6 {[%clk
0:02:58.7]} 7. a4 {[%clk 0:03:04.2]} 7... O-O {[%clk 0:02:54.8]} 8. h3 {[%clk
0:03:04.7]} 8... Ba7 {[%clk 0:02:52.9]} 9. Nbd2 {[%clk 0:03:04]} 9... Ne7 {[%clk
0:02:52.6]} 10. Qe1 {[%clk 0:02:59.7]} 10... Ng6 {[%clk 0:02:48.8]} 11. b4
{[%clk 0:02:51.1]} 11... Nh5 {[%clk 0:02:42]} 12. Kh2 {[%clk 0:02:40.8]} 12...
Kh8 {[%clk 0:02:33.8]} 13. Nb3 {[%clk 0:02:38.5]} 13... f5 {[%clk 0:02:03.8]}
14. Bg5 {[%clk 0:02:31.7]} 14... Qe8 {[%clk 0:01:58.6]} 15. Be3 {[%clk
0:02:31.5]} 15... fxe4 {[%clk 0:01:54.7]} 16. dxe4 {[%clk 0:02:30.4]} 16... Rxf3
{[%clk 0:01:52.5]} 17. gxf3 {[%clk 0:02:30.5]} 17... Nh4 {[%clk 0:01:27.5]} 18.
Be2 {[%clk 0:02:26.6]} 18... Qd7 {[%clk 0:01:12.9]} 0-1

[Event "Early-Titled-Tuesday-Blitz-February-20-2024"]
[Site "Chess.com"]
[Date "2024.02.20"]
[Round "4"]
[White "KononenkoD"]
[Black "Chessdude1987"]
[Result "1-0"]
[WhiteElo "2517"]
[BlackElo "2311"]
[TimeControl "180+1"]
[EndTime "8:35:51 PST"]
[Termination "KononenkoD won by resignation"]

1. e4 {[%clk 0:02:55.4]} 1... e6 {[%clk 0:02:59.2]} 2. g3 {[%clk 0:02:51.9]}
2... d5 {[%clk 0:02:58.8]} 3. Bg2 {[%clk 0:02:51.7]} 3... dxe4 {[%clk
0:02:58.1]} 4. Bxe4 {[%clk 0:02:52.6]} 4... Nf6 {[%clk 0:02:58.4]} 5. Bg2 {[%clk
0:02:52.6]} 5... e5 {[%clk 0:02:58.3]} 6. d3 {[%clk 0:02:51.5]} 6... Bc5 {[%clk
0:02:58]} 7. Ne2 {[%clk 0:02:51]} 7... Ng4 {[%clk 0:02:50.8]} 8. O-O {[%clk
0:02:48.6]} 8... Qf6 {[%clk 0:02:47.7]} 9. Qe1 {[%clk 0:02:45.9]} 9... Nc6
{[%clk 0:02:39.8]} 10. Nbc3 {[%clk 0:02:42.6]} 10... Bb6 {[%clk 0:02:15.2]} 11.
Nd5 {[%clk 0:02:40.5]} 11... Qg6 {[%clk 0:02:13.5]} 12. Nef4 {[%clk 0:02:31.7]}
12... Qh6 {[%clk 0:02:04.2]} 13. h3 {[%clk 0:02:26.5]} 13... g5 {[%clk
0:01:29.4]} 14. hxg4 {[%clk 0:02:16.5]} 14... gxf4 {[%clk 0:01:29.3]} 15. Bxf4
{[%clk 0:02:12.9]} 15... Qg7 {[%clk 0:01:24.3]} 16. Nxb6 {[%clk 0:02:11.3]}
16... axb6 {[%clk 0:01:23.6]} 17. Bxc6+ {[%clk 0:02:11.2]} 17... bxc6 {[%clk
0:01:19.8]} 18. Bxe5 {[%clk 0:02:11.2]} 18... Qxg4 {[%clk 0:01:19.5]} 19. Bxh8+
{[%clk 0:02:04.4]} 19... Be6 {[%clk 0:01:19.5]} 20. Qe4 {[%clk 0:02:01.6]} 20...
Qg8 {[%clk 0:01:15.4]} 21. Qxc6+ {[%clk 0:02:00.2]} 1-0

[Event "Early-Titled-Tuesday-Blitz-February-20-2024"]
[Site "Chess.com"]
[Date "2024.02.20"]
[Round "4"]
[White "dropstoneDP"]
[Black "angelgab3"]
[Result "1/2-1/2"]
[WhiteElo "3025"]
[BlackElo "2768"]
[TimeControl "180+1"]
[EndTime "8:36:05 PST"]
[Termination "Game drawn by repetition"]

1. e4 {[%clk 0:03:00.9]} 1... e5 {[%clk 0:02:59.8]} 2. Nf3 {[%clk 0:03:00.8]}
2... Nc6 {[%clk 0:03:00.5]} 3. Bb5 {[%clk 0:03:01]} 3... a6 {[%clk 0:03:00.7]}
4. Ba4 {[%clk 0:03:01.5]} 4... Nf6 {[%clk 0:03:01.1]} 5. O-O {[%clk 0:03:02]}
5... Nxe4 {[%clk 0:03:01.7]} 6. d4 {[%clk 0:03:02.1]} 6... Be7 {[%clk
0:03:02.2]} 7. Re1 {[%clk 0:03:01.3]} 7... b5 {[%clk 0:03:01.7]} 8. Rxe4 {[%clk
0:03:00.9]} 8... d5 {[%clk 0:03:02.2]} 9. Nxe5 {[%clk 0:03:01.5]} 9... Nxe5
{[%clk 0:03:01.7]} 10. Rxe5 {[%clk 0:03:02.4]} 10... bxa4 {[%clk 0:03:02.6]} 11.
b3 {[%clk 0:03:01.7]} 11... O-O {[%clk 0:03:00.9]} 12. Ba3 {[%clk 0:03:01.7]}
12... Bxa3 {[%clk 0:02:58.5]} 13. Nxa3 {[%clk 0:03:02.6]} 13... Qd6 {[%clk
0:02:57.5]} 14. Nb1 {[%clk 0:03:02.3]} 14... c5 {[%clk 0:02:54]} 15. Nc3 {[%clk
0:02:58.8]} 15... axb3 {[%clk 0:02:26.9]} 16. cxb3 {[%clk 0:02:57.8]} 16... Be6
{[%clk 0:02:25.5]} 17. Na4 {[%clk 0:02:52]} 17... cxd4 {[%clk 0:02:23.4]} 18.
Qxd4 {[%clk 0:02:52.9]} 18... Rac8 {[%clk 0:02:20.3]} 19. Rae1 {[%clk
0:02:51.5]} 19... Rc2 {[%clk 0:02:17]} 20. R5e2 {[%clk 0:02:50.7]} 20... Rxe2
{[%clk 0:02:11.9]} 21. Rxe2 {[%clk 0:02:51.6]} 21... Rc8 {[%clk 0:02:12.2]} 22.
Re1 {[%clk 0:02:13.6]} 22... Rc2 {[%clk 0:02:04.2]} 23. h3 {[%clk 0:02:13.9]}
23... Rxa2 {[%clk 0:01:54.2]} 24. Nc5 {[%clk 0:02:13.4]} 24... Rc2 {[%clk
0:01:49.1]} 25. b4 {[%clk 0:02:10.9]} 25... Rc4 {[%clk 0:01:42.9]} 26. Qe5
{[%clk 0:02:10.1]} 26... Qxe5 {[%clk 0:01:39.4]} 27. Rxe5 {[%clk 0:02:11]} 27...
Rxb4 {[%clk 0:01:37.5]} 28. Nxe6 {[%clk 0:02:11.2]} 28... fxe6 {[%clk
0:01:38.4]} 29. Rxe6 {[%clk 0:02:12.1]} 29... a5 {[%clk 0:01:35.5]} 30. Rd6
{[%clk 0:02:00.3]} 30... Rb1+ {[%clk 0:01:32.3]} 31. Kh2 {[%clk 0:02:00.4]}
31... Rd1 {[%clk 0:01:31.6]} 32. Ra6 {[%clk 0:01:59.7]} 32... Ra1 {[%clk
0:01:28.8]} 33. Rd6 {[%clk 0:01:59.7]} 33... Rd1 {[%clk 0:01:28.3]} 34. Ra6
{[%clk 0:01:59.9]} 34... Ra1 {[%clk 0:01:29.1]} 35. Rd6 {[%clk 0:02:00.4]} 35...
Rd1 {[%clk 0:01:29.7]} 1/2-1/2

[Event "Early-Titled-Tuesday-Blitz-February-20-2024"]
[Site "Chess.com"]
[Date "2024.02.20"]
[Round "4"]
[White "ShieldingOff"]
[Black "Chessbard1972"]
[Result "0-1"]
[WhiteElo "2129"]
[BlackElo "2463"]
[TimeControl "180+1"]
[EndTime "8:36:22 PST"]
[Termination "Chessbard1972 won by resignation"]

1. d4 {[%clk 0:03:00.9]} 1... Nf6 {[%clk 0:02:59.1]} 2. c4 {[%clk 0:03:00.9]}
2... g6 {[%clk 0:03:00]} 3. Nc3 {[%clk 0:03:00.4]} 3... Bg7 {[%clk 0:03:00.2]}
4. e4 {[%clk 0:03:00.2]} 4... d6 {[%clk 0:03:00.9]} 5. Be2 {[%clk 0:03:00.4]}
5... O-O {[%clk 0:03:01.5]} 6. Be3 {[%clk 0:03:00.6]} 6... Na6 {[%clk
0:03:01.1]} 7. g4 {[%clk 0:03:00.1]} 7... c5 {[%clk 0:03:00.7]} 8. d5 {[%clk
0:02:59.8]} 8... e6 {[%clk 0:03:00.3]} 9. h4 {[%clk 0:02:59.8]} 9... exd5 {[%clk
0:03:00]} 10. exd5 {[%clk 0:02:33.2]} 10... Re8 {[%clk 0:02:58]} 11. Bf3 {[%clk
0:02:16.2]} 11... Nc7 {[%clk 0:02:47.4]} 12. h5 {[%clk 0:02:11]} 12... b5 {[%clk
0:02:45.6]} 13. g5 {[%clk 0:02:09.9]} 13... Nd7 {[%clk 0:02:44.3]} 14. cxb5
{[%clk 0:02:04.2]} 14... Rxe3+ {[%clk 0:02:42.4]} 15. fxe3 {[%clk 0:02:03.5]}
15... Qxg5 {[%clk 0:02:42.6]} 16. Ne4 {[%clk 0:01:54.2]} 16... Qxe3+ {[%clk
0:02:37.7]} 17. Qe2 {[%clk 0:01:52.4]} 17... Qd4 {[%clk 0:02:26]} 18. Nxd6
{[%clk 0:01:33.2]} 18... Ne5 {[%clk 0:02:22.7]} 19. Rd1 {[%clk 0:01:25.6]} 19...
Qb4+ {[%clk 0:02:21.3]} 20. Kf1 {[%clk 0:01:19.8]} 20... Bd7 {[%clk 0:02:13.4]}
21. hxg6 {[%clk 0:01:18.3]} 21... fxg6 {[%clk 0:02:11.7]} 22. Ne4 {[%clk
0:00:48.7]} 22... Bxb5 {[%clk 0:02:08.2]} 23. Rd3 {[%clk 0:00:41.8]} 23... Bxd3
{[%clk 0:02:07.7]} 0-1

[Event "Early-Titled-Tuesday-Blitz-February-20-2024"]
[Site "Chess.com"]
[Date "2024.02.20"]
[Round "4"]
[White "Cubitas"]
[Black "fitod"]
[Result "0-1"]
[WhiteElo "2643"]
[BlackElo "2428"]
[TimeControl "180+1"]
[EndTime "8:36:35 PST"]
[Termination "fitod won by resignation"]

1. e4 {[%clk 0:03:00.9]} 1... d6 {[%clk 0:02:56.8]} 2. Nc3 {[%clk 0:03:00.8]}
2... g6 {[%clk 0:02:56.4]} 3. Bc4 {[%clk 0:02:59.9]} 3... Bg7 {[%clk 0:02:56.1]}
4. f4 {[%clk 0:02:59.6]} 4... e6 {[%clk 0:02:56.6]} 5. Nf3 {[%clk 0:02:59.7]}
5... Ne7 {[%clk 0:02:57.2]} 6. d3 {[%clk 0:02:57]} 6... O-O {[%clk 0:02:57.5]}
7. Bb3 {[%clk 0:02:57.2]} 7... a5 {[%clk 0:02:57.1]} 8. a4 {[%clk 0:02:55.3]}
8... Nd7 {[%clk 0:02:53.8]} 9. h4 {[%clk 0:02:53.5]} 9... h5 {[%clk 0:02:52]}
10. f5 {[%clk 0:02:50.8]} 10... exf5 {[%clk 0:02:50.7]} 11. Bg5 {[%clk
0:02:49.9]} 11... Nc5 {[%clk 0:02:50.1]} 12. Ba2 {[%clk 0:02:43.6]} 12... Kh7
{[%clk 0:02:46.8]} 13. Qd2 {[%clk 0:02:26.6]} 13... f6 {[%clk 0:02:32.7]} 14.
Be3 {[%clk 0:02:23.4]} 14... fxe4 {[%clk 0:02:27.6]} 15. dxe4 {[%clk 0:02:21.3]}
15... Bg4 {[%clk 0:02:27.5]} 16. Nd4 {[%clk 0:02:07]} 16... Qd7 {[%clk
0:02:20.5]} 17. O-O {[%clk 0:02:04.6]} 17... Rae8 {[%clk 0:02:14.4]} 18. Ndb5
{[%clk 0:01:57.2]} 18... b6 {[%clk 0:01:47.7]} 19. Bc4 {[%clk 0:01:42.8]} 19...
Nc6 {[%clk 0:01:40.4]} 20. Bxc5 {[%clk 0:01:42.4]} 20... bxc5 {[%clk 0:01:34.5]}
21. Rae1 {[%clk 0:01:38.9]} 21... Ne5 {[%clk 0:01:33.1]} 22. Be2 {[%clk
0:01:31.6]} 22... Bh6 {[%clk 0:01:29]} 23. Qd1 {[%clk 0:01:26.7]} 23... Bxe2
{[%clk 0:01:24.1]} 24. Kh1 {[%clk 0:01:27.4]} 24... Bxd1 {[%clk 0:01:23.7]} 0-1

[Event "Early-Titled-Tuesday-Blitz-February-20-2024"]
[Site "Chess.com"]
[Date "2024.02.20"]
[Round "4"]
[White "vi_pranav"]
[Black "ShazilTheGOAT2006"]
[Result "1-0"]
[WhiteElo "3041"]
[BlackElo "2625"]
[TimeControl "180+1"]
[EndTime "8:36:36 PST"]
[Termination "vi_pranav won by resignation"]

1. e4 {[%clk 0:03:00.9]} 1... c6 {[%clk 0:02:56.7]} 2. d4 {[%clk 0:02:59.3]}
2... d5 {[%clk 0:02:57.1]} 3. e5 {[%clk 0:03:00]} 3... Bf5 {[%clk 0:02:56.8]} 4.
Nf3 {[%clk 0:03:00.6]} 4... e6 {[%clk 0:02:56.7]} 5. Be2 {[%clk 0:03:01.3]} 5...
Nd7 {[%clk 0:02:56.3]} 6. O-O {[%clk 0:03:01.5]} 6... Ne7 {[%clk 0:02:56.8]} 7.
c3 {[%clk 0:03:01.7]} 7... h6 {[%clk 0:02:55.4]} 8. Na3 {[%clk 0:03:02.3]} 8...
Nc8 {[%clk 0:02:55.2]} 9. Nc2 {[%clk 0:03:02.8]} 9... Be7 {[%clk 0:02:52.5]} 10.
Nfe1 {[%clk 0:02:57.6]} 10... O-O {[%clk 0:02:51.1]} 11. Bd3 {[%clk 0:02:57.4]}
11... Bxd3 {[%clk 0:02:48.6]} 12. Nxd3 {[%clk 0:02:58.3]} 12... c5 {[%clk
0:02:38.5]} 13. Ne3 {[%clk 0:02:48.5]} 13... c4 {[%clk 0:02:28.9]} 14. Nf4
{[%clk 0:02:45.9]} 14... Bg5 {[%clk 0:02:18.6]} 15. Qg4 {[%clk 0:02:40.4]} 15...
f5 {[%clk 0:02:09]} 16. exf6 {[%clk 0:02:39.2]} 16... Nxf6 {[%clk 0:02:00.5]}
17. Qxe6+ {[%clk 0:02:38]} 17... Kh7 {[%clk 0:01:55.6]} 18. Qf5+ {[%clk
0:02:37.3]} 18... Kg8 {[%clk 0:01:54.1]} 19. Qe6+ {[%clk 0:02:34.7]} 19... Kh7
{[%clk 0:01:53.6]} 20. Nfxd5 {[%clk 0:02:34.2]} 20... Bxe3 {[%clk 0:01:39.1]}
21. Nxf6+ {[%clk 0:02:28.5]} 21... Qxf6 {[%clk 0:01:38.5]} 22. Qxf6 {[%clk
0:02:25.1]} 22... Rxf6 {[%clk 0:01:39.4]} 23. Bxe3 {[%clk 0:02:24.9]} 23... Ne7
{[%clk 0:01:39.9]} 24. f3 {[%clk 0:02:25.6]} 24... Nd5 {[%clk 0:01:40.2]} 25.
Bd2 {[%clk 0:02:26.1]} 25... Re6 {[%clk 0:01:40.7]} 26. Rae1 {[%clk 0:02:26.4]}
26... Rae8 {[%clk 0:01:39.9]} 27. Kf2 {[%clk 0:02:26.6]} 27... Kg6 {[%clk
0:01:39.2]} 28. g4 {[%clk 0:02:25.1]} 28... Kf7 {[%clk 0:01:38.9]} 29. h4 {[%clk
0:02:24.7]} 29... Rb6 {[%clk 0:01:34.9]} 30. Rxe8 {[%clk 0:02:22.1]} 30... Kxe8
{[%clk 0:01:34.4]} 31. Re1+ {[%clk 0:02:22.7]} 31... Kf7 {[%clk 0:01:33.8]} 32.
Bc1 {[%clk 0:02:23.1]} 32... Ra6 {[%clk 0:01:33.6]} 33. Re5 {[%clk 0:02:20.8]}
33... Ne7 {[%clk 0:01:28.3]} 34. a3 {[%clk 0:02:18.5]} 34... Rc6 {[%clk
0:01:26.2]} 35. h5 {[%clk 0:02:16.7]} 35... b6 {[%clk 0:01:21.5]} 36. Bf4 {[%clk
0:02:13.6]} 36... Rc8 {[%clk 0:01:14.6]} 37. Bg3 {[%clk 0:02:02.7]} 37... Rd8
{[%clk 0:01:14.2]} 38. Rxe7+ {[%clk 0:02:01.4]} 1-0

[Event "Early-Titled-Tuesday-Blitz-February-20-2024"]
[Site "Chess.com"]
[Date "2024.02.20"]
[Round "4"]
[White "wqws"]
[Black "NastyaHn"]
[Result "0-1"]
[WhiteElo "2669"]
[BlackElo "2442"]
[TimeControl "180+1"]
[EndTime "8:36:36 PST"]
[Termination "NastyaHn won by resignation"]

1. e4 {[%clk 0:02:59.5]} 1... e6 {[%clk 0:02:59.3]} 2. d4 {[%clk 0:02:59.6]}
2... d5 {[%clk 0:03:00]} 3. Nc3 {[%clk 0:03:00.5]} 3... Bb4 {[%clk 0:02:59.8]}
4. e5 {[%clk 0:03:00.7]} 4... c5 {[%clk 0:02:59.7]} 5. a3 {[%clk 0:03:00]} 5...
Bxc3+ {[%clk 0:03:00]} 6. bxc3 {[%clk 0:03:00.9]} 6... Ne7 {[%clk 0:03:00.3]} 7.
Nf3 {[%clk 0:03:01]} 7... Qc7 {[%clk 0:02:59.5]} 8. a4 {[%clk 0:03:00.5]} 8...
Bd7 {[%clk 0:02:55.2]} 9. Bd3 {[%clk 0:02:58]} 9... Nbc6 {[%clk 0:02:51.3]} 10.
Bd2 {[%clk 0:02:56.4]} 10... Nf5 {[%clk 0:02:45.5]} 11. g4 {[%clk 0:02:54.8]}
11... Nfe7 {[%clk 0:02:43.8]} 12. Rg1 {[%clk 0:02:47.6]} 12... O-O-O {[%clk
0:02:32.7]} 13. dxc5 {[%clk 0:02:36.1]} 13... Nxe5 {[%clk 0:02:32]} 14. Nxe5
{[%clk 0:02:27.3]} 14... Qxe5+ {[%clk 0:02:31.7]} 15. Be3 {[%clk 0:02:23.6]}
15... Qxh2 {[%clk 0:02:29.2]} 16. Kd2 {[%clk 0:02:08.5]} 16... Nc6 {[%clk
0:02:23.3]} 17. a5 {[%clk 0:02:02.3]} 17... a6 {[%clk 0:02:21.1]} 18. Qe2 {[%clk
0:01:57.5]} 18... Qc7 {[%clk 0:02:19.5]} 19. Rgb1 {[%clk 0:01:54.5]} 19... Nb8
{[%clk 0:01:57.6]} 20. Qf3 {[%clk 0:01:41.9]} 20... Bc6 {[%clk 0:01:49]} 21. Rb6
{[%clk 0:00:59]} 21... d4 {[%clk 0:01:39.9]} 22. Rxc6 {[%clk 0:00:58.3]} 22...
dxe3+ {[%clk 0:01:39.8]} 23. Qxe3 {[%clk 0:00:56.3]} 0-1

[Event "Early-Titled-Tuesday-Blitz-February-20-2024"]
[Site "Chess.com"]
[Date "2024.02.20"]
[Round "4"]
[White "VladimirBugayev"]
[Black "UnTucopalaTimba"]
[Result "1-0"]
[WhiteElo "2264"]
[BlackElo "1988"]
[TimeControl "180+1"]
[EndTime "8:36:38 PST"]
[Termination "VladimirBugayev won by resignation"]

1. e4 {[%clk 0:03:00.9]} 1... c6 {[%clk 0:02:59.6]} 2. d4 {[%clk 0:03:00.5]}
2... d5 {[%clk 0:02:59.4]} 3. exd5 {[%clk 0:03:01.3]} 3... cxd5 {[%clk
0:02:59.4]} 4. Bd3 {[%clk 0:03:02]} 4... Nf6 {[%clk 0:02:58.2]} 5. c3 {[%clk
0:03:02.2]} 5... Nc6 {[%clk 0:02:56.6]} 6. h3 {[%clk 0:03:02.3]} 6... e5 {[%clk
0:02:55.6]} 7. dxe5 {[%clk 0:03:01.9]} 7... Nxe5 {[%clk 0:02:55.6]} 8. Nf3
{[%clk 0:03:02.6]} 8... Nxd3+ {[%clk 0:02:54.6]} 9. Qxd3 {[%clk 0:03:03.5]} 9...
Be7 {[%clk 0:02:48.8]} 10. O-O {[%clk 0:03:03.3]} 10... O-O {[%clk 0:02:48.6]}
11. Bg5 {[%clk 0:02:53.5]} 11... h6 {[%clk 0:02:46.6]} 12. Bxf6 {[%clk
0:02:53.6]} 12... Bxf6 {[%clk 0:02:46.5]} 13. Nbd2 {[%clk 0:02:54.3]} 13... Be6
{[%clk 0:02:43]} 14. Nb3 {[%clk 0:02:54.3]} 14... Qc7 {[%clk 0:02:35.5]} 15.
Nbd4 {[%clk 0:02:53.1]} 15... Bd7 {[%clk 0:02:28.6]} 16. Rad1 {[%clk 0:02:45.1]}
16... a6 {[%clk 0:02:24.2]} 17. Rfe1 {[%clk 0:02:42.8]} 17... Qb6 {[%clk
0:02:18.4]} 18. Rd2 {[%clk 0:02:39.3]} 18... Rfe8 {[%clk 0:02:14.6]} 19. Red1
{[%clk 0:02:38.2]} 19... Rad8 {[%clk 0:02:06]} 20. Nf5 {[%clk 0:02:36.5]} 20...
Bb5 {[%clk 0:02:01.6]} 21. Qc2 {[%clk 0:02:31.6]} 21... Bc4 {[%clk 0:01:43.8]}
22. b3 {[%clk 0:02:27.8]} 22... Bb5 {[%clk 0:01:43.3]} 23. Ne3 {[%clk
0:02:20.3]} 23... Bc6 {[%clk 0:01:38.7]} 24. Nxd5 {[%clk 0:02:17.8]} 24... Bxd5
{[%clk 0:01:38.2]} 25. Rxd5 {[%clk 0:02:18]} 25... Rc8 {[%clk 0:01:36.8]} 26. c4
{[%clk 0:02:16.2]} 26... Qe6 {[%clk 0:01:32.2]} 27. Re1 {[%clk 0:02:10.2]} 27...
Qc6 {[%clk 0:01:27.2]} 28. Rxe8+ {[%clk 0:02:09.6]} 28... Rxe8 {[%clk
0:01:26.9]} 29. Qd2 {[%clk 0:02:09.1]} 29... Qb6 {[%clk 0:01:20.4]} 30. Rd7
{[%clk 0:02:02.7]} 30... a5 {[%clk 0:01:13.1]} 31. Qd5 {[%clk 0:02:00.5]} 31...
Qb4 {[%clk 0:01:08.8]} 32. Qxf7+ {[%clk 0:01:44.4]} 32... Kh8 {[%clk 0:01:08.5]}
33. Qxe8+ {[%clk 0:01:44.9]} 1-0

[Event "Early-Titled-Tuesday-Blitz-February-20-2024"]
[Site "Chess.com"]
[Date "2024.02.20"]
[Round "4"]
[White "kibromNNN"]
[Black "esrosenberg"]
[Result "0-1"]
[WhiteElo "1756"]
[BlackElo "2421"]
[TimeControl "180+1"]
[EndTime "8:36:43 PST"]
[Termination "esrosenberg won by resignation"]

1. d4 {[%clk 0:02:59.3]} 1... d5 {[%clk 0:02:59.6]} 2. c4 {[%clk 0:02:58.7]}
2... c6 {[%clk 0:02:59.7]} 3. Nc3 {[%clk 0:02:58.4]} 3... Nf6 {[%clk 0:02:59.5]}
4. e3 {[%clk 0:02:56.2]} 4... a6 {[%clk 0:02:58.6]} 5. a4 {[%clk 0:02:54.4]}
5... Bf5 {[%clk 0:02:57.1]} 6. Nf3 {[%clk 0:02:53.3]} 6... e6 {[%clk 0:02:53.9]}
7. Be2 {[%clk 0:02:50]} 7... Nbd7 {[%clk 0:02:50.8]} 8. Nh4 {[%clk 0:02:47.8]}
8... Bg6 {[%clk 0:02:48.7]} 9. g3 {[%clk 0:02:40.2]} 9... Bd6 {[%clk 0:02:46.5]}
10. c5 {[%clk 0:02:34.4]} 10... Bc7 {[%clk 0:02:44.5]} 11. Bf3 {[%clk
0:02:32.7]} 11... e5 {[%clk 0:02:41.2]} 12. O-O {[%clk 0:02:26.7]} 12... e4
{[%clk 0:02:38]} 13. Bg2 {[%clk 0:02:25.9]} 13... Qe7 {[%clk 0:02:36.4]} 14. b4
{[%clk 0:02:24.5]} 14... Bh5 {[%clk 0:02:32.9]} 15. Ne2 {[%clk 0:02:13.3]} 15...
Qe6 {[%clk 0:02:29.9]} 16. Bh1 {[%clk 0:02:04.6]} 16... g5 {[%clk 0:02:27.6]}
17. Ng2 {[%clk 0:02:04]} 17... Bf3 {[%clk 0:02:26.5]} 18. h4 {[%clk 0:01:43.9]}
18... h6 {[%clk 0:02:08.2]} 19. Qb3 {[%clk 0:01:35.7]} 19... Bxe2 {[%clk
0:02:05.2]} 20. Re1 {[%clk 0:01:33.5]} 20... Bf3 {[%clk 0:02:00.9]} 21. b5
{[%clk 0:01:32.9]} 21... axb5 {[%clk 0:01:56.9]} 22. Bd2 {[%clk 0:01:31.5]}
22... O-O {[%clk 0:01:44.4]} 23. a5 {[%clk 0:01:27.4]} 23... Qh3 {[%clk
0:01:27.8]} 0-1

[Event "Early-Titled-Tuesday-Blitz-February-20-2024"]
[Site "Chess.com"]
[Date "2024.02.20"]
[Round "4"]
[White "yaguigor"]
[Black "Rosh1610"]
[Result "1-0"]
[WhiteElo "2678"]
[BlackElo "2380"]
[TimeControl "180+1"]
[EndTime "8:36:46 PST"]
[Termination "yaguigor won by resignation"]

1. Nf3 {[%clk 0:03:00.9]} 1... d5 {[%clk 0:02:59]} 2. d4 {[%clk 0:02:59.7]} 2...
Nf6 {[%clk 0:02:58]} 3. c4 {[%clk 0:02:59.3]} 3... e6 {[%clk 0:02:56.9]} 4. Nc3
{[%clk 0:02:58.8]} 4... c5 {[%clk 0:02:56]} 5. cxd5 {[%clk 0:02:57.9]} 5... Nxd5
{[%clk 0:02:54.1]} 6. e4 {[%clk 0:02:57.3]} 6... Nxc3 {[%clk 0:02:54.3]} 7. bxc3
{[%clk 0:02:58]} 7... cxd4 {[%clk 0:02:55.2]} 8. cxd4 {[%clk 0:02:58.2]} 8...
Bb4+ {[%clk 0:02:55.7]} 9. Bd2 {[%clk 0:02:58.8]} 9... Bxd2+ {[%clk 0:02:56.1]}
10. Qxd2 {[%clk 0:02:59.7]} 10... O-O {[%clk 0:02:56.1]} 11. Bc4 {[%clk
0:02:59.2]} 11... Nd7 {[%clk 0:02:50.8]} 12. O-O {[%clk 0:02:57.9]} 12... b6
{[%clk 0:02:50.7]} 13. Rfe1 {[%clk 0:02:56.7]} 13... Bb7 {[%clk 0:02:50.3]} 14.
Rad1 {[%clk 0:02:55]} 14... Nf6 {[%clk 0:02:49.8]} 15. d5 {[%clk 0:02:44.8]}
15... exd5 {[%clk 0:02:48.1]} 16. exd5 {[%clk 0:02:44.6]} 16... Rc8 {[%clk
0:02:30.2]} 17. Bb3 {[%clk 0:02:43.7]} 17... Rc5 {[%clk 0:02:25.4]} 18. d6
{[%clk 0:02:35.7]} 18... Bxf3 {[%clk 0:02:22.6]} 19. gxf3 {[%clk 0:02:34.6]}
19... Nd7 {[%clk 0:01:48.4]} 20. Re7 {[%clk 0:02:31.8]} 20... Ne5 {[%clk
0:01:37.2]} 21. Qe3 {[%clk 0:02:21.3]} 21... Ng6 {[%clk 0:01:13.7]} 22. Bxf7+
{[%clk 0:01:58.4]} 22... Kh8 {[%clk 0:01:07.4]} 23. Bxg6 {[%clk 0:01:57.1]}
23... hxg6 {[%clk 0:01:07.3]} 24. d7 {[%clk 0:01:57.4]} 24... Rc3 {[%clk
0:00:57]} 25. Qe5 {[%clk 0:01:45.9]} 1-0

[Event "Early-Titled-Tuesday-Blitz-February-20-2024"]
[Site "Chess.com"]
[Date "2024.02.20"]
[Round "4"]
[White "Iball95"]
[Black "Lennis93"]
[Result "1-0"]
[WhiteElo "2897"]
[BlackElo "2699"]
[TimeControl "180+1"]
[EndTime "8:36:53 PST"]
[Termination "Iball95 won by resignation"]

1. e4 {[%clk 0:02:59.9]} 1... c5 {[%clk 0:02:59.6]} 2. Nf3 {[%clk 0:02:59.3]}
2... e6 {[%clk 0:03:00.1]} 3. Nc3 {[%clk 0:02:59.7]} 3... a6 {[%clk 0:02:59.4]}
4. d4 {[%clk 0:02:59.9]} 4... cxd4 {[%clk 0:03:00.2]} 5. Nxd4 {[%clk 0:03:00.5]}
5... Qc7 {[%clk 0:03:00.1]} 6. Bd3 {[%clk 0:02:59.8]} 6... Nf6 {[%clk
0:02:59.4]} 7. O-O {[%clk 0:03:00]} 7... Bc5 {[%clk 0:02:58.2]} 8. Nb3 {[%clk
0:02:59.7]} 8... Bd6 {[%clk 0:02:58.1]} 9. f4 {[%clk 0:02:57]} 9... e5 {[%clk
0:02:49.3]} 10. f5 {[%clk 0:02:54.3]} 10... h6 {[%clk 0:02:45.9]} 11. Be3 {[%clk
0:02:51.6]} 11... b5 {[%clk 0:02:45]} 12. a4 {[%clk 0:02:49.8]} 12... b4 {[%clk
0:02:45]} 13. Nd5 {[%clk 0:02:50.3]} 13... Nxd5 {[%clk 0:02:44.2]} 14. exd5
{[%clk 0:02:51.2]} 14... Be7 {[%clk 0:02:37.3]} 15. f6 {[%clk 0:02:23.1]} 15...
Bxf6 {[%clk 0:02:25.3]} 16. a5 {[%clk 0:02:18.3]} 16... d6 {[%clk 0:02:25]} 17.
Nd2 {[%clk 0:02:15.9]} 17... Nd7 {[%clk 0:02:12.9]} 18. Ne4 {[%clk 0:02:14.3]}
18... Be7 {[%clk 0:02:10.9]} 19. Qf3 {[%clk 0:02:12]} 19... Nf6 {[%clk
0:02:02.8]} 20. Qg3 {[%clk 0:02:12.2]} 20... Ng4 {[%clk 0:01:38.2]} 21. Bb6
{[%clk 0:02:11.1]} 21... Qd7 {[%clk 0:01:21.3]} 22. h3 {[%clk 0:02:11.5]} 22...
f5 {[%clk 0:01:16.1]} 23. Rxf5 {[%clk 0:02:10.7]} 23... Qxf5 {[%clk 0:00:51.7]}
24. Nxd6+ {[%clk 0:02:10.6]} 24... Bxd6 {[%clk 0:00:52.3]} 25. Bxf5 {[%clk
0:02:11.4]} 25... Bxf5 {[%clk 0:00:51.4]} 26. hxg4 {[%clk 0:02:12]} 26... Bxc2
{[%clk 0:00:52]} 27. Rf1 {[%clk 0:01:52.2]} 27... Rf8 {[%clk 0:00:40.3]} 28.
Rxf8+ {[%clk 0:01:51.7]} 28... Kxf8 {[%clk 0:00:41.2]} 29. Qf2+ {[%clk
0:01:51.7]} 1-0